Cogmind - Beta 16 @@@ ROGUE MODE // 2025.10.30 @ 21:26:10 Player: JuustuToug Result: Destroyed self with Subdweller Shrapnel Launcher Performance ------------- Evolutions (0) 0 Regions Visited (2) 400 Robots Destroyed (43) 215 Value Destroyed (1094) 1094 Prototype IDs (12) 240 Alien Tech Used (0) 0 Bonus (-42) -42 TOTAL SCORE: 1907 Bonus ------- Friendly Fire -42 Cogmind --------- Core Integrity 0/250 Matter 248/300 Energy 160/160 System Corruption 1% Temperature Cool (0) Movement Walking (200) Ox1 Location -10/Subcaves Parts ------- > --- POWER (1) -------- Light Nuclear Core > --- PROPULSION (2) --- Cargo Legs > --- UTILITY (2+2) ---- Huge Storage Unit Seismic Detector > --- WEAPON (2) ------- Particle Gun Subdweller Shrapnel Launcher > --- INVENTORY (25) --- Ion Engine Light Ion Engine Light Ion Engine Subdweller Power Source Subdweller Power Source Aluminum Leg Aluminum Leg Wheel Subdweller Monowheel Subdweller Monowheel Heat Sink Disposable Heat Sink Disposable Heat Sink Huge Storage Unit High-capacity Matter Pod (200) Subdweller Optics Subdweller Optics Terrain Scanner Terrain Scanner Particle Gun Particle Gun Subdweller Laser Subdweller Laser Subdweller Beam Cannon Multitool Peak State ------------ > --- POWER ------------ Light Nuclear Core > --- PROPULSION ------- Cargo Legs > --- UTILITY ---------- Huge Storage Unit Seismic Detector > --- WEAPON ----------- Subdweller Laser Subdweller Beam Cannon > --- INVENTORY -------- Ion Engine Light Ion Engine Light Ion Engine Subdweller Power Source Subdweller Power Source Aluminum Leg Aluminum Leg Wheel Wheel Wheel Heat Sink Disposable Heat Sink Disposable Heat Sink Huge Storage Unit High-capacity Matter Pod Subdweller Optics Terrain Scanner Terrain Scanner Particle Gun Particle Gun Particle Gun Subdweller Laser Subdweller Shrapnel Launcher [Rating: 28] Favorites ----------- Power Ion Engine Engine Ion Engine Power Core Light Nuclear Core Propulsion Light Treads Treads Light Treads Leg Cargo Legs Wheel Subdweller Monowheel Utility Huge Storage Unit Device Seismic Detector Storage Huge Storage Unit Processor Transport Network Coupler Protection Propulsion Shielding Weapon Beam Cannon Energy Gun Subdweller Laser Energy Cannon Beam Cannon Ballistic Gun Light Assault Rifle Launcher Subdweller Shrapnel Launcher Build | -11 -10 -10 ------- Run | Yrd Mat Sub Slots Evolved . | . . . Power . | . . . Propulsion . | . . . Utility . | . . . Weapon . | . . . Parts Attached 36 | 6 14 16 Power 3 | 1 1 1 Engine 2 | 1 1 . Core 1 | . . 1 Reactor . | . . . Propulsion 9 | 2 2 5 Treads 5 | 2 2 1 Leg 1 | . . 1 Wheel 3 | . . 3 Hover . | . . . Flight . | . . . Utility 10 | 1 7 2 Device 5 | . 3 2 Storage 3 | 1 2 . Processor 1 | . 1 . Hackware . | . . . Protection 1 | . 1 . Artifact . | . . . Weapon 14 | 2 4 8 Energy Gun 8 | 1 2 5 Energy Cannon 2 | . 1 1 Ballistic Gun 3 | 1 1 1 Ballistic Cannon . | . . . Launcher 1 | . . 1 Special Weapon . | . . . Impact Weapon . | . . . Slashing Weapon . | . . . Piercing Weapon . | . . . Special Melee Weapon . | . . . Unidentified Prototypes . | . . . Parts Lost 13 | . 2 11 Power 2 | . 1 1 Propulsion 5 | . . 5 Utility 2 | . . 2 Weapon 4 | . 1 3 Highest Loss Streak 7 | . 1 7 To Critical Strikes 2 | . . 2 Average Backups 17 | 4 12 24 Power 2 | . 1 4 Propulsion 4 | 2 3 6 Utility 5 | . 3 8 Weapon 4 | 1 3 4 Tool/Special . | . . . Unused Backups 32 | . 10 22 Power 5 | . . 5 Propulsion 11 | . 5 6 Utility 11 | . 3 8 Weapon 4 | . 2 2 Tool/Special 1 | . . 1 Average Slot Usage (%) 98 | . 99 97 Engine 8 | . 14 . Core 5 | . . 13 Treads 25 | . 28 23 Wheel 1 | . . 2 Device 7 | . 3 13 Storage 13 | . 14 13 Protection 5 | . 9 . Energy Gun 7 | . 3 14 Energy Cannon 7 | . 10 2 Ballistic Gun 12 | . 14 10 Peak Build Rating 28 | 6 10 28 Average Rating 10 | 4 8 14 On Entrance 5 | . 6 10 Avg Prop Armor Cover (%) . | . . . Naked Turns . | . . . Heaviest Build 98 | 13 90 98 Greatest Support 55 | 40 46 55 Greatest Overweight (x) 2 | . 2 2 Average Overweight (x) 1 | . . 1 Largest Inventory Capacity 25 | 8 25 25 Average Capacity 20 | 7 17 25 Most Carried 25 | 7 24 25 Average Carried 17 | 4 12 24 Final Capacity 25 | 8 25 25 Final Carried 25 | 5 24 25 Class Distribution -------------------- 65% | Mutant 34% | Scavenger-Mutant Dominant Class ---------------- Mutant | -10/Materials Scavenger-Mutant | -10/Subcaves Resources | -11 -10 -10 ----------- Run | Yrd Mat Sub Matter Collected 1152 | 235 639 278 Remotely . | . . . Salvage Created 1539 | . 1042 497 Parts 89 | . 59 30 Haulers Intercepted 2 | . 2 . Recyclers Shooed . | . . . Parts Field Recycled . | . . . Retrieved Matter . | . . . Parts Self-Destructed 4 | . . 4 Prevented . | . . . Parts Restored . | . . . Kills | -11 -10 -10 ------- Run | Yrd Mat Sub Combat Hostiles Destroyed 31 | . 19 12 Guns 19 | . 10 9 Cannons 10 | . 9 1 AOE 1 | . . 1 Classes Destroyed 12 | . 9 3 Worker 1 | . 1 . Builder 1 | . 1 . Tunneler 3 | . 3 . Hauler 2 | . 2 . Recycler 1 | . 1 . Operator 1 | . 1 . Watcher 3 | . 3 . Swarmer 7 | . 6 1 Grunt 13 | . 13 . Sentry 1 | . . 1 Artisan 2 | . . 2 Subdweller 10 | . . 10 Best Kill Streak 3 | . 3 3 Combat Bots Only 3 | . 3 3 Max Kills in Single Turn 1 | . 1 1 Gunslinging . | . . . Exploded 1 | . . 1 Melee . | . . . Uniques/NPCs Destroyed . | . . . Combat | -11 -10 -10 -------- Run | Yrd Mat Sub Hostile Shots Fired 147 | . 87 60 Missed 38 | . 20 18 Hits 109 | . 67 42 Projectile 109 | . 67 42 AOE 3 | . . 3 Critical Strikes 2 | . . 2 Damage Taken 1872 | . 783 1089 Core 258 | . 105 153 Absorbed by Shields . | . . . Redirected to Shielding 53 | . 23 30 Core Remaining (%) 100 | 100 . . Volleys Fired 129 | . 82 47 Largest 2 | . 2 2 Hottest 140 | . 80 140 Shots Fired 258 | . 167 91 Gun 197 | . 124 73 Cannon 60 | . 43 17 Launcher 1 | . . 1 Special . | . . . Kinetic 108 | . 85 23 Thermal 150 | . 82 68 Explosive . | . . . Electromagnetic . | . . . Robot Hit Streak 20 | . 20 20 Robot Miss Streak 4 | . 4 2 Penetration Max . | . . . Secondary Targets 1 | . . 1 Max Gunslinging Chain 1 | . . 1 Shots Hit Robots 176 | . 113 63 Core Hits 71 | . 47 24 Critical Kills . | . . . Critical Parts Destroyed 1 | . 1 . Critical Strikes 6 | . 4 2 Burn 5 | . 3 2 Destroy 1 | . 1 . Melee Attacks . | . . . Impact . | . . . Slashing . | . . . Piercing . | . . . Sneak Attacks . | . . . Combat Hostiles . | . . . Follow-up Attacks . | . . . Damage Inflicted 2839 | . 1510 1329 Guns 1892 | . 940 952 Cannons 778 | . 521 257 Explosions 120 | . . 120 Melee . | . . . Ramming 49 | . 49 . Kinetic 975 | . 570 405 Thermal 1815 | . 891 924 Explosive . | . . . Electromagnetic . | . . . Impact . | . . . Slashing . | . . . Piercing . | . . . Highest Corruption 1 | . 1 1 Average Corruption 1 | . 1 1 Corruption Purged . | . . . Corruption Blocked . | . . . Effects 40 | . 24 16 Message Errors 8 | . 4 4 Matter Fused 9 | . 3 6 Heat Flow Errors 4 | . 2 2 Energy Discharges 5 | . 3 2 Data Loss (minor) 7 | . 6 1 Data Loss (major) 1 | . . 1 Misfires 4 | . 4 . Alerts 2 | . 2 . Overload Shots . | . . . Overflow Damage . | . . . Projectiles . | . . . Explosions . | . . . Melee . | . . . Knockbacks . | . . . Impact . | . . . Kinetic . | . . . Secondary . | . . . Self-Inflicted Damage 48 | . . 48 Shots 1 | . . 1 Rammed 5 | . 5 . Targets Rammed 6 | . 6 . Kicked . | . . . Crushed 1 | . 1 . Highest Temperature 323 | . 323 214 Average Temperature 66 | . 73 43 Received Heat Transfer 489 | . 327 162 Effects 1 | . 1 . Energy Bleed 1 | . 1 . Siege Activations . | . . . Martial Activations . | . . . Shielding Activations . | . . . Robots Disrupted . | . . . Combat Hostiles . | . . . Robots Corrupted . | . . . Combat Hostiles . | . . . Parts Fried . | . . . Impact Corruptions . | . . . Robots Melted 1 | . . 1 Combat Hostiles 1 | . . 1 Parts Melted 6 | . 4 2 Heat Transferred 4031 | . 2359 1672 Parts Sabotaged . | . . . Parts Stolen . | . . . Parts Stripped . | . . . Power Chain Reactions . | . . . Alert | -11 -10 -10 ------- Run | Yrd Mat Sub Maximum Alert Level . | . . . Low Security (%) 100 | 100 100 . Level 1 . | . . . Level 2 . | . . . Level 3 . | . . . Level 4 . | . . . Level 5 . | . . . High Security . | . . . Max Security . | . . . Peak Influence 148 | . 148 . Initial . | . . . Average 45 | . 47 . Influence Increases 676 | . 636 40 Destroy 0b10 Robot/C 420 | . 380 40 Destroy 0b10 Robot/NC 60 | . 60 . Destroy Leader 90 | . 90 . Successful Hack 30 | . 30 . Select Force Hacks 60 | . 60 . Disable Machine 15 | . 15 . Destroy Structure 1 | . 1 . Influence Decreases 676 | . 632 44 Entered New Map 3 | . . 3 Time Decay 653 | . 612 41 Lost Part 20 | . 20 . Squads Dispatched 4 | . 4 . Investigation 3 | . 3 . Extermination . | . . . Reinforcement 1 | . 1 . Assault . | . . . Garrison . | . . . Intercept . | . . . Searches Triggered . | . . . Construction Impeded . | . . . Haulers Reinforced . | . . . Active Scanning Responses . | . . . Cargo Convoy Interrupts . | . . . Stealth | -11 -10 -10 --------- Run | Yrd Mat Sub Distress Signals . | . . . Communications Jammed . | . . . Distress Signals . | . . . Times Spotted 38 | . 26 12 Peak Tracking Total 3 | . 3 3 Tactical Retreats . | . . . Traps | -11 -10 -10 ------- Run | Yrd Mat Sub Traps Triggered 4 | . 3 1 Indirectly . | . . . Trap Hack Attempts . | . . . Triggered . | . . . Disarmed . | . . . Reprogrammed . | . . . Reused . | . . . Traps Extracted . | . . . Installed . | . . . Triggered . | . . . Machines | -11 -10 -10 ---------- Run | Yrd Mat Sub Machines Disabled 2 | . 1 1 Max in Single Turn 1 | . 1 1 Machines Repaired . | . . . Machines Dismantled . | . . . Machines Sabotaged . | . . . Overloaded Fab Kills . | . . . Hacking | -11 -10 -10 --------- Run | Yrd Mat Sub Machines Accessed 10 | . 8 2 Terminals 6 | . 6 . Fabricators . | . . . Repair Stations . | . . . Recycling Units 2 | . 2 . Scanalyzers . | . . . Garrison Access . | . . . Total Hacks 23 | . 17 6 Successful 15 | . 9 6 Failed 8 | . 8 . Catastrophic 4 | . 4 . Database Lockouts . | . . . Manual 16 | . 16 . Terminals 14 | . 14 . Fabricators . | . . . Repair Stations . | . . . Recycling Units 3 | . 3 . Scanalyzers . | . . . Garrison Access . | . . . Terminal Hacks 7 | . 1 6 Record 5 | . . 5 Terminal Index 1 | . 1 . Proto ID Catalog 1 | . . 1 Fabricator Hacks . | . . . Repair Station Hacks . | . . . Recycling Unit Hacks . | . . . Scanalyzer . | . . . Garrison Access Hacks . | . . . Unauthorized Hacks 8 | . 8 . Terminals 6 | . 6 . Skim 6 | . 6 . Fabricators . | . . . Repair Stations . | . . . Recycling Units 2 | . 2 . Tunnel 2 | . 2 . Scanalyzers . | . . . Garrison Access . | . . . Data Cores Recovered . | . . . Used . | . . . Hacking Detections 6 | . 6 . Full Trace Events 1 | . 1 . Feedback Events . | . . . Feedback Blocked . | . . . Robot Schematics Acquired . | . . . Robots Built . | . . . Authchips . | . . . Time . | . . . Total Robot Build Rating . | . . . Part Schematics Acquired . | . . . Parts Built . | . . . Authchips . | . . . Time . | . . . Total Part Build Rating . | . . . Part Studies Acquired . | . . . Parts Repaired . | . . . Time . | . . . Parts Recycled . | . . . Recycled Matter . | . . . Retrieved Matter . | . . . Retrieved Components . | . . . Parts Scanalyzed . | . . . Part Schematics Acquired . | . . . Parts Damaged . | . . . Bothacking | -11 -10 -10 ------------ Run | Yrd Mat Sub Used RIF Installer . | . . . Robots Hacked . | . . . Non-combat . | . . . Combat . | . . . Robot Hacks Applied . | . . . Relay Couplers Released . | . . . Fabnet Peak Effective % . | . . . Robots Rewired . | . . . Allies Hacked . | . . . Hacks Repelled . | . . . Allies | -11 -10 -10 -------- Run | Yrd Mat Sub Total Allies . | . . . Largest Group . | . . . Highest-Rated Group . | . . . Highest-Rated Ally . | . . . Total Orders . | . . . Ally Attacks . | . . . Total Damage . | . . . Kills . | . . . Allies Corrupted . | . . . Allies Melted . | . . . Intel | -11 -10 -10 ------- Run | Yrd Mat Sub Active Infowar (turns) 2648 | . 646 2002 Optics 68 | . . 68 Terrain 640 | . 640 . Seismic 1935 | . 1 1934 T.N.C. 5 | . 5 . Robot Analysis Total . | . . . Derelict Logs Recovered . | . . . Drone Launches . | . . . Drone Recoveries . | . . . Exploration | -11 -10 -10 ------------- Run | Yrd Mat Sub Turns Passed 5063 | 85 2941 2037 Spaces Moved 1751 | 48 1046 657 Core 7 | 7 . . Treads 1573 | 41 1046 486 Legs 56 | . . 56 Wheels 115 | . . 115 Hover . | . . . Flight . | . . . Fastest Speed 50 | 50 160 130 Average Speed 242 | 143 226 276 Slowest Speed 320 | 160 320 320 Overloaded Moves . | . . . Propulsion Burnouts . | . . . Robots Hopped . | . . . Potential Cave-ins . | . . . Cave-ins Triggered . | . . . Exploration Rate (%) 52 | 4 99 53 Regions Visited 2 Branch Regions 1 Pre-discovered Areas 3 | . 3 . Known Exits Taken . | . . . Unknown Exits Taken 2 | 1 1 . Scrap Searched . | . . . Spaces Dug . | . . . Terrain Destroyed 5 | . . 5 Melee . | . . . Projectile 2 | . . 2 AOE 3 | . . 3 Terrain Rammed . | . . . Walls Destroyed . | . . . Machines Disabled . | . . . Actions | -11 -10 -10 --------- Run | Yrd Mat Sub Total 2317 | 64 1466 787 Wait 283 | . 254 29 Move 1749 | 47 1045 657 Hop . | . . . Pick Up 68 | 11 36 21 Fast Attach 2 | . 2 . Attach 22 | 6 4 12 Detach 1 | . 1 . Swap 26 | . 16 10 Drop 31 | . 20 11 Fire 129 | . 82 47 Melee . | . . . Ram . | . . . Kick . | . . . Crush 6 | . 6 . Escape Stasis . | . . . Rewire . | . . . Trap . | . . . Miscellaneous . | . . . Route ------- -11/Scrapyard -10/Materials (discovered 5 exits: [*Mat x3] / *Min / *Sub) -10/Subcaves (discovered 2 exits: *Mat x2) History --------- Turn | Location | Event 8 | -11/Scrapyard | Discovered new exit (range 16) 86 | -11/Scrapyard | Entered Materials 316 | -10/Materials | Build established: Mutant 844 | -10/Materials | Discovered new exit (range 15) 1050 | -10/Materials | Discovered new exit (range 16) 1490 | -10/Materials | Discovered new exit (range 8) 2166 | -10/Materials | Discovered new exit (range 8) 2203 | -10/Materials | Learned Storage interactive machine intel 2263 | -10/Materials | Learned 4 Recycling zone layouts 2359 | -10/Materials | Identified exit to Mines 2434 | -10/Materials | Learned location of 2 exits from Materials 2490 | -10/Materials | Loaded intel: 1 repair station location 2533 | -10/Materials | Learned Recycling recycling unit intel 2584 | -10/Materials | Loaded intel: 2 recycling unit locations 3027 | -10/Materials | Entered Subcaves 3028 | -10/Subcaves | Identified exit to Materials 3094 | -10/Subcaves | Ambushed by Subdweller buried in earth 3153 | -10/Subcaves | Lost 7 parts (1p3n1u2w) 3382 | -10/Subcaves | A swath of the cavern ceiling suddenly collapsed 3533 | -10/Subcaves | Build established: Scavenger-Mutant 4104 | -10/Subcaves | Core integrity fell below 50% 4193 | -10/Subcaves | Visited Clippyterm 4202 | -10/Subcaves | Learned Factory fabricator intel 4202 | -10/Subcaves | Learned 40 Factory zone layouts 4735 | -10/Subcaves | Ambushed by angry Subdweller bent on revenge 4778 | -10/Subcaves | Lost 3 parts (2n1w) 4919 | -10/Subcaves | Visited 4L-MR0's lab 4933 | -10/Subcaves | Found Cargo Legs 4935 | -10/Subcaves | Attached Cargo Legs, gained temporary slots: Utility x2 5054 | -10/Subcaves | Core integrity fell below 20% 5064 | -10/Subcaves | Destroyed self with Subdweller Shrapnel Launcher Last Messages --------------- last prototype ended up, probably tossed aside somewhere as if it were useless junk..." 04932_ Dropped Sub. Monowheel. 04932_ Dropped Sub. Optics. 04933_ Acquired Cargo Legs. 04935_ Core temporarily expanded with Utility slot. 04937_ Dropped Wheel. 04938_ Acquired Sub. Monowheel. 04944_ Acquired Sub. Optics. 04955_ Sub. Laser shoots sparks and powers down. 04955_ Sub. Beam Cannon shoots sparks and powers down. 04961_ 4L-MR0 cries out in pain. 04961_ 4L-MR0 destroyed. 04964_ Acquired 24 matter. 04968_ Acquired Multitool. 04985_ System corrupted: Matter fused (-6). 04996_ Subatomizers dissect the Sub. Monowheel. 05064_ PI-AAA(R) destroyed. Map ----- +----------------------------------------------------+ | ???????????????????????????????????????????????? | | ???????????????????????????????????????????????? | | ???????????????????????????????????????????????? | | ???????????????????????????????????????????????? | | ???????????????????????????????????????????????? | | ???????????????????????????????????????????????? | | ???????????????????????????????????????????????? | | ???????????????????????????????????????????????? | | ???????????????????????????????????????????????? | | ???????????????????????????????????????????????? | | ???????????????????????????????????????????????? | | ????????????????????? ?????????????????????????? | | ???????????????????? ?????????????????????????? | | ????????????????????# ??????????#??????????????? | | ???????????????????## ????????? ??# ???????????? | | ???????????????????? ???????? ?? ???????????? | | ???????????????????? ??????? ??????????? | | ???????????????????## ??????? ???????????? | | ???????????????????# ###??? ?????????????? | | ???????????????????? # ?? ???????????????? | | ????????????????????? ### ?????????????????? | | ?????????????????????# ???????????????????? | | ?????????????????????# *R ?????????????????????? | | ?????????????????????# %;#?????????????????????? | | ???????????????###??## &;;#????????????????????? | | ??????????????## ### @ #????????????????????? | | ??????????????# ## #????????????????????? | | ??????????????# ## #????????????????????? | | ??????????????# ###??????????????????? | | ??????????????## # R ###????????????????? | | ??????????????## & R< ##???????????????? | | ??????????????# < #???????????????? | | ??????????????# " ! ##???????????????? | | ??????????????# ## & % #????????????????? | | ??????????????## # #????????????????? | | ??????????????# ### ##????????????????? | | ??????????????# ###!&& # #?????????????????? | | ??????????????## #?##% *####?????????????????? | | ???????????????# #####&& #"#??????????????????? | | ???######??????# ##?????????????????? | | ???#=#""#?????## #?????????????????? | | ???# #""#?????# ##?????????????????? | | ???# ""#?#####" ##??????????????????? | | ???#= X"#?# #"" ###???????????????????? | | ???# ""#?# ##????????????????????? | | ???#" "#?# ###??????????????????? | | ???#" ="#?# #" # #??????????????????? | | ???###+##### ## # #??????????????????? | | ??### ""## # ######??????????????????? | | ??#"" """" ## ##??????????????????????? | +----------------------------------------------------+ Best States ------------- Heat Dissipation 25 Energy Generation 14 Energy Capacity 250 Matter Stores 300 Matter Capacity 300 Sight Range 21 Terrain Scan Range 14 Terrain Scan Density 10 Additional Mass Support 6 Propulsion Shielding 33 Evasion (%) 40 Recoil Reduction 2 Item Schematics ----------------- None Robot Schematics ------------------ None Fabricated ------------ Nothing Repaired ---------- Nothing Studied --------- None Alien Tech Used ----------------- None Achievements -------------- Art Critic Challenges ------------ None Game ------ Seed StorageInsulationBarrier Manual? 0 Play Time 00:20:34 Cumulative 169.7 hours Start 2025.10.30 @ 21:05:40 End 2025.10.30 @ 21:26:10 Sessions 1 Manual Loads 0 Difficulty Rogue Special Mode None Game No. 115 Rogue 115 Adventurer 0 Explorer 0 Win Type - Total 6 Types 4/0/1/1/0/0/0/0/0/0 Lore% 81 Gallery% 72 Achievement% 53 Wizard Run 0 Options --------- Layout 1 ASCII 0 Keyboard 0 Movement Mouse Keybinds 0 Fullscreen 2 Font 24/Smallcaps Map View 50x35 Zoom Use 0% Tactical HUD 1 Map Filters NONE Filters NONE Steam 1 RUN: 6c6f94c8-520f-497b-acc6-a5842c62a1f3